[Event "Live Chess"]
[Site "Chess.com"]
[Date "2023.05.21"]
[Round "-"]
[White "Vitalii18a"]
[Black "LL220284LL"]
[Result "0-1"]
[WhiteElo "1136"]
[BlackElo "2328"]
[TimeControl "300"]
[EndTime "4:59:04 PDT"]
[Termination "LL220284LL won by checkmate"]

1. e4 {[%clk 0:04:57.6]} 1... b6 {[%clk 0:04:58.9]} 2. Nf3 {[%clk 0:04:56.2]}
2... g6 {[%clk 0:04:58.8]} 3. c3 {[%clk 0:04:54.5]} 3... Bg7 {[%clk 0:04:58.7]}
4. Bb5 {[%clk 0:04:50.1]} 4... Bb7 {[%clk 0:04:58.6]} 5. d3 {[%clk 0:04:44.6]}
5... a6 {[%clk 0:04:57.7]} 6. Ba4 {[%clk 0:04:43.2]} 6... b5 {[%clk 0:04:56.9]}
7. Bc2 {[%clk 0:04:41.8]} 7... c5 {[%clk 0:04:56.5]} 8. O-O {[%clk 0:04:40.2]}
8... d6 {[%clk 0:04:56.1]} 9. Re1 {[%clk 0:04:39.1]} 9... Nf6 {[%clk 0:04:55.8]}
10. d4 {[%clk 0:04:36.6]} 10... O-O {[%clk 0:04:54.6]} 11. dxc5 {[%clk
0:04:35.3]} 11... dxc5 {[%clk 0:04:54.5]} 12. Bg5 {[%clk 0:04:28.6]} 12... h6
{[%clk 0:04:49.9]} 13. Bh4 {[%clk 0:04:24.4]} 13... Nc6 {[%clk 0:04:36.8]} 14.
h3 {[%clk 0:04:06.9]} 14... Qb6 {[%clk 0:04:34.8]} 15. Nh2 {[%clk 0:03:51.9]}
15... Rad8 {[%clk 0:04:32.5]} 16. Qe2 {[%clk 0:03:45.5]} 16... Ne5 {[%clk
0:04:25.6]} 17. Nd2 {[%clk 0:03:40.7]} 17... c4 {[%clk 0:04:23.1]} 18. Ndf3
{[%clk 0:03:36.8]} 18... Nd3 {[%clk 0:04:20.1]} 19. b3 {[%clk 0:03:28.2]} 19...
Nxe4 {[%clk 0:04:08]} 20. bxc4 {[%clk 0:03:18.5]} 20... bxc4 {[%clk 0:04:01.9]}
21. Bxe7 {[%clk 0:03:16.5]} 21... Nexf2 {[%clk 0:03:57.4]} 22. Bxd8 {[%clk
0:03:00.4]} 22... Rxd8 {[%clk 0:03:45.9]} 23. Ng4 {[%clk 0:02:44.6]} 23... Nxg4+
{[%clk 0:03:34.7]} 24. Kh1 {[%clk 0:02:32.9]} 24... Ndf2+ {[%clk 0:03:30.8]} 25.
Kg1 {[%clk 0:02:19.7]} 25... Nxh3+ {[%clk 0:03:30.3]} 26. Kh1 {[%clk 0:02:16.3]}
26... Nhf2+ {[%clk 0:03:21.1]} 27. Kg1 {[%clk 0:02:13.9]} 27... Ne4+ {[%clk
0:03:20.4]} 28. Kh1 {[%clk 0:02:07.5]} 28... Ng3# {[%clk 0:03:19.4]} 0-1

[Event "Live Chess"]
[Site "Chess.com"]
[Date "2023.05.21"]
[Round "-"]
[White "ElectricFalcon"]
[Black "TheSmoulderingMaster"]
[Result "0-1"]
[WhiteElo "1070"]
[BlackElo "1639"]
[TimeControl "300"]
[EndTime "4:59:06 PDT"]
[Termination "TheSmoulderingMaster won by resignation"]

1. d4 {[%clk 0:04:59.6]} 1... Nf6 {[%clk 0:04:57.9]} 2. c4 {[%clk 0:04:59.5]}
2... d6 {[%clk 0:04:57.3]} 3. Nf3 {[%clk 0:04:59.4]} 3... g6 {[%clk 0:04:56.3]}
4. Nc3 {[%clk 0:04:59.3]} 4... Bg7 {[%clk 0:04:55.8]} 5. Bg5 {[%clk 0:04:58.8]}
5... O-O {[%clk 0:04:55.1]} 6. e4 {[%clk 0:04:57.2]} 6... c6 {[%clk 0:04:54.5]}
7. e5 {[%clk 0:04:56.1]} 7... Ne8 {[%clk 0:04:52.1]} 8. exd6 {[%clk 0:04:52.9]}
8... Nxd6 {[%clk 0:04:50.6]} 9. c5 {[%clk 0:04:51.4]} 9... Nf5 {[%clk
0:04:43.8]} 10. Bd3 {[%clk 0:04:48.6]} 10... Nxd4 {[%clk 0:04:41.5]} 11. Nxd4
{[%clk 0:04:47.1]} 11... Bxd4 {[%clk 0:04:37.3]} 12. O-O {[%clk 0:04:45.7]}
12... Bxc5 {[%clk 0:04:33.8]} 13. Ne4 {[%clk 0:04:42]} 13... Bd4 {[%clk
0:04:32.1]} 14. Rb1 {[%clk 0:04:39.5]} 14... Bf5 {[%clk 0:04:29.2]} 15. Qe2
{[%clk 0:04:33.2]} 15... Nd7 {[%clk 0:04:24.9]} 16. b3 {[%clk 0:04:26.2]} 16...
Ne5 {[%clk 0:04:22.4]} 17. Rbd1 {[%clk 0:04:17.1]} 17... Qd5 {[%clk 0:04:15.4]}
18. Bxe7 {[%clk 0:04:06.3]} 18... Rfe8 {[%clk 0:04:12.8]} 19. Bf6 {[%clk
0:04:01.8]} 19... Nxd3 {[%clk 0:04:09.2]} 20. Qd2 {[%clk 0:03:40.2]} 20... Bxe4
{[%clk 0:04:05.7]} 21. Qh6 {[%clk 0:03:38.7]} 21... Bxf6 {[%clk 0:04:02.5]} 22.
Qd2 {[%clk 0:03:20.3]} 22... Rad8 {[%clk 0:03:55.6]} 23. Qe3 {[%clk 0:03:17]}
23... Bd4 {[%clk 0:03:51.7]} 0-1

[Event "Live Chess"]
[Site "Chess.com"]
[Date "2023.05.21"]
[Round "-"]
[White "ossie57"]
[Black "chessfiction"]
[Result "0-1"]
[WhiteElo "1888"]
[BlackElo "2312"]
[TimeControl "300"]
[EndTime "4:59:23 PDT"]
[Termination "chessfiction won by resignation"]

1. d4 {[%clk 0:04:57.6]} 1... d5 {[%clk 0:04:59.1]} 2. Nc3 {[%clk 0:04:56.8]}
2... e5 {[%clk 0:04:58.2]} 3. dxe5 {[%clk 0:04:55.9]} 3... d4 {[%clk 0:04:57.4]}
4. Ne4 {[%clk 0:04:49.5]} 4... Nc6 {[%clk 0:04:56.6]} 5. Nf3 {[%clk 0:04:47.2]}
5... Bf5 {[%clk 0:04:54.7]} 6. Ng3 {[%clk 0:04:45.2]} 6... Bg6 {[%clk
0:04:53.8]} 7. h4 {[%clk 0:04:31.5]} 7... h5 {[%clk 0:04:46.1]} 8. a3 {[%clk
0:04:29.8]} 8... Nh6 {[%clk 0:04:43.9]} 9. Bxh6 {[%clk 0:04:27.7]} 9... gxh6
{[%clk 0:04:42.5]} 10. e3 {[%clk 0:04:26]} 10... dxe3 {[%clk 0:04:39.7]} 11.
Qxd8+ {[%clk 0:04:24.6]} 11... Rxd8 {[%clk 0:04:39.5]} 12. fxe3 {[%clk
0:04:23.9]} 12... Bc5 {[%clk 0:04:38.6]} 13. e4 {[%clk 0:04:19.5]} 13... Nd4
{[%clk 0:04:36.5]} 14. O-O-O {[%clk 0:04:02]} 14... Nxf3 {[%clk 0:04:27.8]} 15.
gxf3 {[%clk 0:04:01.9]} 15... Be3+ {[%clk 0:04:26.7]} 16. Kb1 {[%clk 0:04:00.5]}
16... Rxd1+ {[%clk 0:04:26.1]} 17. Ka2 {[%clk 0:03:58.2]} 17... Ke7 {[%clk
0:04:24]} 18. Nf5+ {[%clk 0:03:53.9]} 18... Bxf5 {[%clk 0:04:22.6]} 19. exf5
{[%clk 0:03:53.8]} 19... Rhd8 {[%clk 0:04:20.7]} 20. f6+ {[%clk 0:03:51.8]}
20... Ke6 {[%clk 0:04:19.7]} 21. f4 {[%clk 0:03:40.9]} 21... Bxf4 {[%clk
0:04:14.8]} 22. Bh3+ {[%clk 0:03:38.9]} 22... Kxe5 {[%clk 0:04:13.4]} 0-1

[Event "Live Chess"]
[Site "Chess.com"]
[Date "2023.05.21"]
[Round "-"]
[White "f4nomore"]
[Black "raminguy"]
[Result "0-1"]
[WhiteElo "1383"]
[BlackElo "1951"]
[TimeControl "300"]
[EndTime "4:59:26 PDT"]
[Termination "raminguy won by resignation"]

1. e4 {[%clk 0:04:58.2]} 1... e5 {[%clk 0:04:59.9]} 2. Nf3 {[%clk 0:04:54.9]}
2... Nc6 {[%clk 0:04:59.3]} 3. Bc4 {[%clk 0:04:52.5]} 3... Bc5 {[%clk
0:04:58.5]} 4. b4 {[%clk 0:04:50.7]} 4... Bxb4 {[%clk 0:04:57.4]} 5. c3 {[%clk
0:04:49]} 5... Ba5 {[%clk 0:04:57]} 6. O-O {[%clk 0:04:45.9]} 6... d6 {[%clk
0:04:54.8]} 7. d4 {[%clk 0:04:44.3]} 7... Bg4 {[%clk 0:04:52.5]} 8. dxe5 {[%clk
0:04:36.5]} 8... Nxe5 {[%clk 0:04:50.2]} 9. Nbd2 {[%clk 0:04:09.5]} 9... Nf6
{[%clk 0:04:31.4]} 10. Qa4+ {[%clk 0:04:06.3]} 10... c6 {[%clk 0:04:29.5]} 11.
Qxa5 {[%clk 0:03:58.2]} 11... Qxa5 {[%clk 0:04:26.7]} 12. Nxe5 {[%clk 0:03:55]}
12... dxe5 {[%clk 0:04:23.9]} 13. Nb3 {[%clk 0:03:51]} 13... Qxc3 {[%clk
0:04:21.7]} 14. Bd2 {[%clk 0:03:40.9]} 14... Qxc4 {[%clk 0:04:19.4]} 15. Rac1
{[%clk 0:03:37]} 15... Qa6 {[%clk 0:04:17.6]} 16. f3 {[%clk 0:03:33.8]} 16...
Be6 {[%clk 0:04:15.1]} 17. Kh1 {[%clk 0:03:28.6]} 17... O-O {[%clk 0:04:13.4]}
18. Nc5 {[%clk 0:03:27]} 18... Qxa2 {[%clk 0:04:11.2]} 19. Bb4 {[%clk
0:03:21.6]} 19... Nh5 {[%clk 0:03:58.2]} 20. Nxe6 {[%clk 0:03:18.8]} 20... fxe6
{[%clk 0:03:56.8]} 21. Bxf8 {[%clk 0:03:16]} 21... Nf4 {[%clk 0:03:49.5]} 22.
Rg1 {[%clk 0:03:03.3]} 22... Rxf8 {[%clk 0:03:47]} 23. Ra1 {[%clk 0:02:59.1]}
23... Nd3 {[%clk 0:03:26.5]} 24. Rgd1 {[%clk 0:02:49.6]} 24... Nf2+ {[%clk
0:03:18.4]} 25. Kg1 {[%clk 0:02:46.1]} 25... Nxd1 {[%clk 0:03:14]} 26. Rxa2
{[%clk 0:02:44.5]} 26... a6 {[%clk 0:03:11.2]} 27. g3 {[%clk 0:02:42.1]} 27...
Nc3 {[%clk 0:03:09]} 28. Rd2 {[%clk 0:02:38.4]} 28... a5 {[%clk 0:03:05.6]} 29.
Rd6 {[%clk 0:02:35.8]} 29... a4 {[%clk 0:03:04.2]} 30. Rd7 {[%clk 0:02:32.8]}
30... b5 {[%clk 0:02:59.1]} 31. Ra7 {[%clk 0:02:30.2]} 31... Rb8 {[%clk
0:02:56.9]} 32. Kg2 {[%clk 0:02:30.1]} 32... b4 {[%clk 0:02:55.9]} 33. f4 {[%clk
0:02:21]} 33... b3 {[%clk 0:02:53.7]} 0-1

[Event "Live Chess"]
[Site "Chess.com"]
[Date "2023.05.21"]
[Round "-"]
[White "yarek"]
[Black "WelshTiger"]
[Result "0-1"]
[WhiteElo "1893"]
[BlackElo "2307"]
[TimeControl "300"]
[EndTime "4:59:31 PDT"]
[Termination "WelshTiger won on time"]

1. e4 {[%clk 0:04:56.3]} 1... d6 {[%clk 0:04:58.2]} 2. d4 {[%clk 0:04:53.2]}
2... Nf6 {[%clk 0:04:57.5]} 3. Nc3 {[%clk 0:04:51.2]} 3... e5 {[%clk 0:04:56.4]}
4. d5 {[%clk 0:04:47.9]} 4... g6 {[%clk 0:04:48.6]} 5. Nf3 {[%clk 0:04:45.2]}
5... Bg7 {[%clk 0:04:47]} 6. Be2 {[%clk 0:04:44.1]} 6... O-O {[%clk 0:04:45.3]}
7. O-O {[%clk 0:04:42.9]} 7... c6 {[%clk 0:04:42]} 8. dxc6 {[%clk 0:04:31.5]}
8... bxc6 {[%clk 0:04:40.3]} 9. h3 {[%clk 0:04:15.1]} 9... h6 {[%clk 0:04:33.6]}
10. Be3 {[%clk 0:04:11.5]} 10... Kh7 {[%clk 0:04:15.8]} 11. Qd2 {[%clk
0:03:59.2]} 11... Qc7 {[%clk 0:04:15.2]} 12. Rad1 {[%clk 0:03:55.4]} 12... Rd8
{[%clk 0:04:14.4]} 13. a3 {[%clk 0:03:36.2]} 13... Be6 {[%clk 0:04:13.3]} 14. b3
{[%clk 0:03:24.2]} 14... d5 {[%clk 0:04:05.1]} 15. exd5 {[%clk 0:02:56.4]} 15...
Nxd5 {[%clk 0:04:04]} 16. Nxd5 {[%clk 0:02:44.8]} 16... cxd5 {[%clk 0:04:03.1]}
17. c3 {[%clk 0:02:23.7]} 17... Nc6 {[%clk 0:03:57.7]} 18. Bb5 {[%clk
0:02:13.5]} 18... Rab8 {[%clk 0:03:54.2]} 19. Bxc6 {[%clk 0:02:05.2]} 19... Qxc6
{[%clk 0:03:54.1]} 20. Bxa7 {[%clk 0:01:25.5]} 20... Rxb3 {[%clk 0:03:52.2]} 21.
c4 {[%clk 0:00:55.2]} 21... Qxc4 {[%clk 0:03:44.1]} 22. Rc1 {[%clk 0:00:53.3]}
22... Qa4 {[%clk 0:03:42.4]} 23. Bc5 {[%clk 0:00:42.7]} 23... d4 {[%clk
0:03:36.1]} 24. Bb4 {[%clk 0:00:32.3]} 24... Qd7 {[%clk 0:03:29.6]} 25. Qc2
{[%clk 0:00:25.1]} 25... Rxf3 {[%clk 0:03:23.9]} 26. gxf3 {[%clk 0:00:22.7]}
26... Bxh3 {[%clk 0:03:22.9]} 27. Qe4 {[%clk 0:00:17.7]} 27... Bxf1 {[%clk
0:03:20.2]} 28. Kxf1 {[%clk 0:00:14.2]} 28... Qd5 {[%clk 0:03:12]} 29. Qxd5
{[%clk 0:00:11.6]} 29... Rxd5 {[%clk 0:03:11.1]} 30. Rc7 {[%clk 0:00:10.3]}
30... d3 {[%clk 0:03:04.9]} 31. Ke1 {[%clk 0:00:06.4]} 31... Kg8 {[%clk
0:02:59.3]} 32. Rc8+ {[%clk 0:00:03.9]} 32... Kh7 {[%clk 0:02:58.7]} 33. Kd2
{[%clk 0:00:01.5]} 33... Bf6 {[%clk 0:02:51.9]} 34. a4 {[%clk 0:00:00.2]} 34...
Bg5+ {[%clk 0:02:50.7]} 0-1

[Event "Live Chess"]
[Site "Chess.com"]
[Date "2023.05.21"]
[Round "-"]
[White "manthanit"]
[Black "Chesscoach_Golichenko"]
[Result "0-1"]
[WhiteElo "1095"]
[BlackElo "2612"]
[TimeControl "300"]
[EndTime "4:59:36 PDT"]
[Termination "Chesscoach_Golichenko won by resignation"]

1. e4 {[%clk 0:04:50.4]} 1... Nf6 {[%clk 0:04:58.4]} 2. e5 {[%clk 0:04:45.6]}
2... Nd5 {[%clk 0:04:57.2]} 3. d4 {[%clk 0:04:45.1]} 3... d6 {[%clk 0:04:54]} 4.
Nf3 {[%clk 0:04:44.5]} 4... g6 {[%clk 0:04:51.1]} 5. Bc4 {[%clk 0:04:43.4]} 5...
c6 {[%clk 0:04:46]} 6. exd6 {[%clk 0:04:39.9]} 6... Qxd6 {[%clk 0:04:44.2]} 7.
Bxd5 {[%clk 0:04:39.3]} 7... cxd5 {[%clk 0:04:41]} 8. O-O {[%clk 0:04:38.2]}
8... Bg7 {[%clk 0:04:39.7]} 9. Be3 {[%clk 0:04:35.4]} 9... O-O {[%clk
0:04:38.7]} 10. Re1 {[%clk 0:04:34.2]} 10... Nc6 {[%clk 0:04:37.4]} 11. c3
{[%clk 0:04:33.2]} 11... f6 {[%clk 0:04:34.7]} 12. Nbd2 {[%clk 0:04:29.4]} 12...
e5 {[%clk 0:04:31.3]} 13. Nf1 {[%clk 0:04:22.4]} 13... e4 {[%clk 0:04:26.6]} 14.
N3d2 {[%clk 0:04:16.2]} 14... f5 {[%clk 0:04:23.2]} 15. f3 {[%clk 0:04:13.8]}
15... f4 {[%clk 0:04:19.5]} 16. fxe4 {[%clk 0:03:45.4]} 16... fxe3 {[%clk
0:04:15.4]} 17. Nxe3 {[%clk 0:03:42.1]} 17... dxe4 {[%clk 0:04:08.1]} 18. Nxe4
{[%clk 0:03:38.9]} 18... Qf4 {[%clk 0:04:02]} 19. Ng3 {[%clk 0:03:30]} 19... Bd7
{[%clk 0:03:53.1]} 20. Nd5 {[%clk 0:03:28.4]} 20... Qd6 {[%clk 0:03:50.5]} 21.
Ne3 {[%clk 0:03:25.7]} 21... Kh8 {[%clk 0:03:47.6]} 22. Qd2 {[%clk 0:03:17.6]}
22... Rae8 {[%clk 0:03:45.5]} 23. Nc4 {[%clk 0:03:13]} 23... Qc7 {[%clk
0:03:41.5]} 24. Rxe8 {[%clk 0:02:57.8]} 24... Rxe8 {[%clk 0:03:38.2]} 25. Rf1
{[%clk 0:02:52.1]} 25... Nxd4 {[%clk 0:03:33.7]} 26. b3 {[%clk 0:02:08.8]} 26...
Nf5 {[%clk 0:03:25.7]} 27. Nxf5 {[%clk 0:01:54.3]} 27... Bxf5 {[%clk 0:03:24.1]}
28. Re1 {[%clk 0:01:42.6]} 28... Rxe1+ {[%clk 0:03:16.9]} 29. Qxe1 {[%clk
0:01:41.6]} 29... h5 {[%clk 0:03:13.6]} 30. Ne3 {[%clk 0:01:26.6]} 30... Qxc3
{[%clk 0:03:08.2]} 31. Qxc3 {[%clk 0:01:10.1]} 31... Bxc3 {[%clk 0:03:08.1]} 32.
Nxf5 {[%clk 0:01:09.7]} 32... gxf5 {[%clk 0:03:07.2]} 0-1

[Event "Live Chess"]
[Site "Chess.com"]
[Date "2023.05.21"]
[Round "-"]
[White "smoggyrabbit"]
[Black "MarkLim1"]
[Result "0-1"]
[WhiteElo "1669"]
[BlackElo "1694"]
[TimeControl "300"]
[EndTime "4:59:37 PDT"]
[Termination "MarkLim1 won on time"]

1. d4 {[%clk 0:04:58.6]} 1... Nf6 {[%clk 0:04:58.9]} 2. Nf3 {[%clk 0:04:56.2]}
2... e6 {[%clk 0:04:58]} 3. e3 {[%clk 0:04:54]} 3... c5 {[%clk 0:04:57]} 4. Bd3
{[%clk 0:04:50.4]} 4... b6 {[%clk 0:04:48.8]} 5. O-O {[%clk 0:04:48]} 5... Be7
{[%clk 0:04:48.1]} 6. b3 {[%clk 0:04:46.7]} 6... Ba6 {[%clk 0:04:46.1]} 7. Bb2
{[%clk 0:04:42.5]} 7... Bxd3 {[%clk 0:04:45]} 8. Qxd3 {[%clk 0:04:40.8]} 8...
O-O {[%clk 0:04:43.9]} 9. Nbd2 {[%clk 0:04:35.9]} 9... d5 {[%clk 0:04:42.8]} 10.
Ne5 {[%clk 0:04:24.5]} 10... Qc7 {[%clk 0:04:38.4]} 11. f4 {[%clk 0:04:22.7]}
11... Nc6 {[%clk 0:04:37.3]} 12. Rf3 {[%clk 0:04:14.9]} 12... cxd4 {[%clk
0:04:35.7]} 13. exd4 {[%clk 0:04:13.6]} 13... Nb4 {[%clk 0:04:34.7]} 14. Qc3
{[%clk 0:04:00.5]} 14... Qxc3 {[%clk 0:04:17]} 15. Rxc3 {[%clk 0:04:00.4]} 15...
Rfc8 {[%clk 0:04:11.1]} 16. Rxc8+ {[%clk 0:03:57.8]} 16... Rxc8 {[%clk
0:04:09.9]} 17. c4 {[%clk 0:03:56.8]} 17... dxc4 {[%clk 0:03:55.6]} 18. bxc4
{[%clk 0:03:55.2]} 18... Ne8 {[%clk 0:03:42.3]} 19. Rf1 {[%clk 0:03:33.9]} 19...
a5 {[%clk 0:03:31.1]} 20. Nd7 {[%clk 0:03:19.2]} 20... Nxa2 {[%clk 0:03:17.9]}
21. Nxb6 {[%clk 0:03:15.7]} 21... Rb8 {[%clk 0:03:15]} 22. Ra1 {[%clk
0:03:01.6]} 22... Rxb6 {[%clk 0:03:05.8]} 23. Rxa2 {[%clk 0:02:59.7]} 23... Bb4
{[%clk 0:03:03.6]} 24. Bc1 {[%clk 0:02:47.2]} 24... Nf6 {[%clk 0:02:43.9]} 25.
c5 {[%clk 0:02:38]} 25... Rb8 {[%clk 0:02:32]} 26. Nc4 {[%clk 0:02:32.8]} 26...
Bc3 {[%clk 0:02:22]} 27. Bd2 {[%clk 0:02:10.7]} 27... Bxd4+ {[%clk 0:02:19.1]}
28. Kf1 {[%clk 0:02:00.6]} 28... Bxc5 {[%clk 0:02:15.8]} 29. Rxa5 {[%clk
0:01:56.5]} 29... Bd4 {[%clk 0:01:57.7]} 30. Bb4 {[%clk 0:01:36.5]} 30... g6
{[%clk 0:01:51.8]} 31. Bd6 {[%clk 0:01:26]} 31... Rc8 {[%clk 0:01:40]} 32. Ne5
{[%clk 0:01:18.5]} 32... Nd5 {[%clk 0:01:26.4]} 33. Ra4 {[%clk 0:01:00.9]} 33...
Rc1+ {[%clk 0:01:18.1]} 34. Ke2 {[%clk 0:00:53.7]} 34... Nc3+ {[%clk 0:01:08.7]}
35. Kd2 {[%clk 0:00:51.7]} 35... Be3+ {[%clk 0:00:57.1]} 36. Kxe3 {[%clk
0:00:49.5]} 36... Nxa4 {[%clk 0:00:56]} 37. Nd7 {[%clk 0:00:46.2]} 37... Nc3
{[%clk 0:00:45.7]} 38. Nf6+ {[%clk 0:00:36.8]} 38... Kg7 {[%clk 0:00:41.5]} 39.
Be5 {[%clk 0:00:35.2]} 39... Kh6 {[%clk 0:00:26.9]} 40. g4 {[%clk 0:00:24.2]}
40... Nd5+ {[%clk 0:00:18.1]} 41. Kd2 {[%clk 0:00:19.2]} 41... Nxf6 {[%clk
0:00:13.6]} 42. Kxc1 {[%clk 0:00:17.6]} 42... Nxg4 {[%clk 0:00:12.9]} 43. Bd4
{[%clk 0:00:14.4]} 43... Kh5 {[%clk 0:00:11.6]} 44. Kd2 {[%clk 0:00:13.5]} 44...
Nxh2 {[%clk 0:00:10.5]} 45. Ke2 {[%clk 0:00:12.5]} 45... Ng4 {[%clk 0:00:09.4]}
46. Kf3 {[%clk 0:00:11.9]} 46... Nh6 {[%clk 0:00:08]} 47. Ke4 {[%clk 0:00:11]}
47... Nf5 {[%clk 0:00:06.5]} 48. Bf6 {[%clk 0:00:09.9]} 48... h6 {[%clk
0:00:05.3]} 49. Be5 {[%clk 0:00:09.1]} 49... Kg4 {[%clk 0:00:04.4]} 50. Kd3
{[%clk 0:00:08.1]} 50... h5 {[%clk 0:00:04.3]} 51. Ke2 {[%clk 0:00:07.4]} 51...
h4 {[%clk 0:00:04.2]} 52. Bd4 {[%clk 0:00:06.7]} 52... Ng3+ {[%clk 0:00:03.5]}
53. Ke1 {[%clk 0:00:03.7]} 53... h3 {[%clk 0:00:03.4]} 54. Bg1 {[%clk
0:00:02.3]} 54... Kxf4 {[%clk 0:00:03.3]} 55. Bh2 {[%clk 0:00:01.6]} 55... Kg4
{[%clk 0:00:02.9]} 56. Kf2 {[%clk 0:00:01]} 56... Ne4+ {[%clk 0:00:02.7]} 0-1

[Event "Live Chess"]
[Site "Chess.com"]
[Date "2023.05.21"]
[Round "-"]
[White "AbilifyXL"]
[Black "Dhaydon19"]
[Result "0-1"]
[WhiteElo "1961"]
[BlackElo "2701"]
[TimeControl "300"]
[EndTime "4:59:42 PDT"]
[Termination "Dhaydon19 won on time"]

1. d4 {[%clk 0:04:58.1]} 1... c6 {[%clk 0:04:59.1]} 2. c4 {[%clk 0:04:57.1]}
2... d5 {[%clk 0:04:58.7]} 3. Nc3 {[%clk 0:04:56.2]} 3... Nf6 {[%clk 0:04:57.9]}
4. cxd5 {[%clk 0:04:55.6]} 4... cxd5 {[%clk 0:04:57.1]} 5. Nf3 {[%clk 0:04:55]}
5... a6 {[%clk 0:04:56.4]} 6. Bg5 {[%clk 0:04:54.1]} 6... e6 {[%clk 0:04:55.4]}
7. e3 {[%clk 0:04:52.3]} 7... Nbd7 {[%clk 0:04:54.6]} 8. Bd3 {[%clk 0:04:51.1]}
8... b5 {[%clk 0:04:53.5]} 9. O-O {[%clk 0:04:49.9]} 9... Bb7 {[%clk 0:04:52.6]}
10. a3 {[%clk 0:04:48.6]} 10... Be7 {[%clk 0:04:51.6]} 11. b4 {[%clk 0:04:47.5]}
11... Rc8 {[%clk 0:04:50]} 12. Rc1 {[%clk 0:04:46.6]} 12... Nb6 {[%clk
0:04:48.9]} 13. Nd2 {[%clk 0:04:45.5]} 13... Nc4 {[%clk 0:04:46.8]} 14. Ncb1
{[%clk 0:04:43.9]} 14... O-O {[%clk 0:04:39.8]} 15. Nb3 {[%clk 0:04:42.5]} 15...
Nd7 {[%clk 0:04:29.4]} 16. Bxe7 {[%clk 0:04:41.4]} 16... Qxe7 {[%clk 0:04:29]}
17. Nc5 {[%clk 0:04:40.5]} 17... Nxc5 {[%clk 0:04:28]} 18. bxc5 {[%clk
0:04:39.5]} 18... Bc6 {[%clk 0:04:25.4]} 19. Qc2 {[%clk 0:04:34.5]} 19... g6
{[%clk 0:04:22.4]} 20. Rfe1 {[%clk 0:04:32.8]} 20... Rfd8 {[%clk 0:04:20.8]} 21.
h3 {[%clk 0:04:31.4]} 21... e5 {[%clk 0:04:19.2]} 22. Rcd1 {[%clk 0:04:19.5]}
22... Re8 {[%clk 0:04:15.3]} 23. Bxc4 {[%clk 0:04:02.3]} 23... bxc4 {[%clk
0:04:13.8]} 24. Nc3 {[%clk 0:03:57.8]} 24... exd4 {[%clk 0:04:10.2]} 25. exd4
{[%clk 0:03:53.6]} 25... Qf6 {[%clk 0:04:07.5]} 26. Qd2 {[%clk 0:03:43.6]} 26...
Kg7 {[%clk 0:04:04.8]} 27. Rxe8 {[%clk 0:03:40.1]} 27... Rxe8 {[%clk 0:04:03.5]}
28. Kf1 {[%clk 0:02:58.1]} 28... Rb8 {[%clk 0:03:51.1]} 29. Rb1 {[%clk
0:02:51.9]} 29... Rb3 {[%clk 0:03:40.8]} 30. Ra1 {[%clk 0:02:35.8]} 30... Qf5
{[%clk 0:03:32.2]} 31. h4 {[%clk 0:01:47.1]} 31... h5 {[%clk 0:03:27.1]} 32. g3
{[%clk 0:01:29.7]} 32... Bd7 {[%clk 0:03:15.1]} 33. Re1 {[%clk 0:01:21.3]} 33...
Qh3+ {[%clk 0:03:13.3]} 34. Kg1 {[%clk 0:01:20.4]} 34... Bg4 {[%clk 0:03:10.8]}
35. Qe3 {[%clk 0:01:13.2]} 35... Rxa3 {[%clk 0:03:02.4]} 36. Qe5+ {[%clk
0:01:10.6]} 36... Kh7 {[%clk 0:02:57.8]} 37. Nxd5 {[%clk 0:01:09]} 37... Be6
{[%clk 0:02:32.3]} 38. Nf6+ {[%clk 0:01:06]} 38... Kh6 {[%clk 0:02:25]} 39. d5
{[%clk 0:01:03.1]} 39... Bf5 {[%clk 0:02:15.2]} 40. Ng8+ {[%clk 0:00:59.7]}
40... Kh7 {[%clk 0:02:14]} 41. Nf6+ {[%clk 0:00:58.8]} 41... Kh6 {[%clk
0:02:12.9]} 42. Ne8 {[%clk 0:00:51.7]} 42... f6 {[%clk 0:02:05.8]} 43. Nxf6
{[%clk 0:00:47.5]} 43... Bd7 {[%clk 0:01:51.3]} 44. Qf4+ {[%clk 0:00:41.3]}
44... Kg7 {[%clk 0:01:50.1]} 45. Qe5 {[%clk 0:00:35.9]} 45... Kh6 {[%clk
0:01:45.5]} 46. Qf4+ {[%clk 0:00:34.9]} 46... Kg7 {[%clk 0:01:44.3]} 47. Qe5
{[%clk 0:00:34.4]} 47... Qf5 {[%clk 0:01:41.9]} 48. Nxd7+ {[%clk 0:00:32.3]}
48... Qxe5 {[%clk 0:01:40.9]} 49. Nxe5 {[%clk 0:00:32.2]} 49... Ra5 {[%clk
0:01:39.8]} 50. c6 {[%clk 0:00:28.9]} 50... Rxd5 {[%clk 0:01:38.8]} 51. c7
{[%clk 0:00:28.1]} 51... Rc5 {[%clk 0:01:38.1]} 52. Ra1 {[%clk 0:00:25.4]} 52...
c3 {[%clk 0:01:37]} 53. Nd3 {[%clk 0:00:23.8]} 53... Rxc7 {[%clk 0:01:35.2]} 54.
Rxa6 {[%clk 0:00:23.7]} 54... c2 {[%clk 0:01:34.8]} 55. Nc1 {[%clk 0:00:23]}
55... Rd7 {[%clk 0:01:33.2]} 56. Nb3 {[%clk 0:00:21.3]} 56... Rd1+ {[%clk
0:01:32]} 57. Kg2 {[%clk 0:00:20.9]} 57... c1=Q {[%clk 0:01:30.4]} 58. Nxc1
{[%clk 0:00:20.8]} 58... Rxc1 {[%clk 0:01:30.1]} 59. Ra7+ {[%clk 0:00:20.7]}
59... Kh6 {[%clk 0:01:29]} 60. Ra6 {[%clk 0:00:20.1]} 60... Rc4 {[%clk
0:01:27.9]} 61. f4 {[%clk 0:00:19.4]} 61... Rc8 {[%clk 0:01:27.4]} 62. Kh3
{[%clk 0:00:19.3]} 62... Rc5 {[%clk 0:01:26.4]} 63. Rb6 {[%clk 0:00:17.9]} 63...
Ra5 {[%clk 0:01:25.6]} 64. Ra6 {[%clk 0:00:17.8]} 64... Rxa6 {[%clk 0:01:23.9]}
65. f5 {[%clk 0:00:09.8]} 65... gxf5 {[%clk 0:01:22.6]} 66. g4 {[%clk
0:00:09.1]} 66... fxg4+ {[%clk 0:01:21.5]} 67. Kg3 {[%clk 0:00:08.3]} 67... Ra3+
{[%clk 0:01:21.2]} 68. Kf4 {[%clk 0:00:07.7]} 68... g3 {[%clk 0:01:19.9]} 0-1